bitfinex/quotes_ETHUSD_20250217
["timestamp","ask_amount","ask_price","bid_price","bid_amount"]
[1739808153842,3.63175,2753.5,2752.8,3.63254]
[1739808154054,3.6315,2753.7,2752.9,3.63244]
[1739808154249,3.631,2754.1,2752.5,0.55]
[1739808154407,1.6174,2754.2,2752.7,0.55]
[1739808154609,2.15942471,2754.6,2753.5,3.63168]
[1739808154835,3.63097,2754.1,2753.4,5.15857]
[1739808155041,0.04539199,2754.0,2753.4,1.5268]
[1739808155246,3.63079,2754.3,2753.6,3.63158]
[1739808155566,3.63079,2754.3,2753.7,3.63139]
[1739808155567,3.63069,2754.3,2753.7,3.63139]
[1739808155708,3.63069,2754.3,2753.4,5.15863]
[1739808156057,3.63081,2754.2,2753.4,5.15862]
[1739808156225,0.0453923,2754.5,2753.4,1.5268]
[1739808156401,0.0453923,2754.5,2752.9,1.5165]
[1739808156600,1.5148,2753.7,2752.6,0.355]
[1739808156831,5.1458,2754.1,2753.3,3.63199]
[1739808157138,3.63172,2753.6,2752.8,3.63256]
[1739808157340,3.63172,2753.6,2751.9,4.052131]
[1739808157341,3.63134,2753.8,2752.1,1.5165]
[1739808157512,3.63203,2753.3,2752.1,1.5165]
[1739808157718,3.6324,2753.0,2752.3,3.63324]
[1739808157915,1.95454,2753.0,2751.8,3.63396]
[1739808158243,0.04541806,2752.9,2751.8,3.63397]
[1739808158545,3.6332,2752.4,2751.8,3.63395]
[1739808158841,3.6332,2752.4,2751.8,3.6339]
[1739808159204,1.5913,2753.0,2751.6,0.01819225]
[1739808159517,3.63218,2753.2,2752.6,3.63291]
[1739808159705,1.5635,2753.5,2751.6,0.45752923]
[1739808159902,3.63261,2752.9,2752.2,3.63336]
[1739808160118,3.63261,2752.9,2752.2,3.63334]
[1739808160430,3.63261,2752.9,2752.3,3.63331]
[1739808160638,3.6324,2753.0,2751.6,0.45752923]
[1739808160816,3.63235,2753.1,2752.4,3.63311]
[1739808161024,3.63172,2753.6,2752.7,3.63275]
[1739808161332,3.63196,2753.4,2752.7,3.63275]
[1739808161545,3.63229,2753.1,2752.5,3.633]
[1739808161713,3.63179,2753.5,2752.3,3.63332]
[1739808161916,5.16258,2753.9,2752.4,0.01816567]
[1739808162229,3.6317,2753.6,2752.9,7.2649]
[1739808162420,3.6317,2753.6,2753.0,3.6323]
[1739808162622,3.6317,2753.6,2752.8,5.19176]
[1739808163363,0.36317,2753.5,2752.6,5.19191]
[1739808163569,3.63249,2753.0,2752.2,5.19242]
[1739808163823,3.6328,2752.7,2752.1,3.63356]
[1739808163952,3.63306,2752.5,2751.9,3.63382]
[1739808164153,3.6334,2752.3,2751.6,0.45752923]
[1739808164391,3.63311,2752.5,2751.8,3.63396]
[1739808164600,3.6334,2752.3,2751.6,3.63413]
[1739808164793,1.6499,2753.0,2751.3,1.6253]
[1739808165009,3.63332,2752.3,2751.3,5.25989]
[1739808165194,3.63286,2752.7,2751.9,3.63376]
[1739808165377,3.63356,2752.2,2751.5,3.63426]
[1739808165903,3.63374,2752.0,2751.5,3.63426]
[1739808166113,1.6474,2752.6,2751.4,3.63451]
[1739808166259,1.6474,2752.6,2752.0,3.63362]
[1739808166464,3.63327,2752.4,2751.8,7.2678]
[1739808166798,3.63327,2752.4,2751.8,3.6339]
[1739808167093,3.63353,2752.2,2751.6,3.63414]
[1739808167294,3.63333,2752.3,2751.6,3.63414]
[1739808167532,0.891367,2752.4,2751.3,1.6253]
[1739808167671,0.0454213,2752.4,2751.8,3.6339]
[1739808167870,1.6474,2752.6,2751.4,4.18451]
[1739808168078,1.5515,2753.0,2752.3,3.63324]
[1739808168397,1.5515,2753.0,2752.0,3.6336]
[1739808168696,3.63362,2752.1,2751.6,3.63424]
[1739808168906,3.63297,2752.6,2750.6,1.6496]
[1739808168907,1.5693,2752.0,2750.6,1.6496]
[1739808169200,3.63393,2751.9,2751.1,3.6349]
[1739808169387,3.63393,2751.9,2751.3,3.63456]
[1739808169584,3.63359,2752.1,2751.5,3.6343]
[1739808169782,3.6339,2751.9,2751.1,0.36349]
[1739808169993,3.6339,2751.9,2751.3,3.63453]
[1739808170178,3.63424,2751.6,2750.5,3.80339731]
[1739808170358,1.5693,2751.7,2750.5,0.16776731]
[1739808170359,0.04544248,2751.5,2750.5,0.16776731]
[1739808170557,1.5693,2751.7,2750.2,1.6496]
[1739808170802,3.63437,2751.6,2751.0,3.63493]
[1739808171010,3.63445,2751.5,2750.8,3.63528]
[1739808171162,5.20349,2751.7,2750.9,3.63504]
[1739808171388,3.63403,2751.8,2751.3,3.63456]
[1739808171628,1.5693,2752.1,2751.2,3.63466]
[1739808171819,3.63398,2751.8,2750.0,1.5747]
[1739808172019,3.63526,2750.9,2750.0,1.5747]
[1739808172219,3.6348,2751.2,2750.0,1.5747]
[1739808172420,3.63477,2751.2,2750.6,3.63554]
[1739808172822,3.63448,2751.5,2750.0,1.5747]
[1739808172823,3.63512,2751.0,2750.3,3.63588]
[1739808172993,3.63539,2750.8,2750.1,3.63613]
[1739808173194,1.5442,2750.9,2750.1,0.56010718]
[1739808173399,1.5442,2750.9,2750.3,3.63584]
[1739808173722,1.5442,2750.9,2749.2,1.5433]
[1739808173947,1.5961,2749.8,2749.1,0.72820833]
[1739808174080,1.5961,2749.8,2749.1,4.36566833]
[1739808174286,1.6415699,2750.3,2749.1,2.70807516]
[1739808174583,1.5961,2750.3,2749.9,3.63649]
[1739808174807,1.6128,2750.7,2749.2,0.374]
[1739808175065,1.6128,2750.7,2749.2,3.0]
[1739808175279,1.6128,2750.7,2749.3,3.39224626]
[1739808175482,1.6128,2750.7,2749.6,3.63689]
[1739808175679,3.67976851,2751.6,2750.4,3.63571]
[1739808175921,5.24727,2751.5,2750.7,3.63537]
[1739808176119,5.24727,2751.5,2750.5,3.63566]
[1739808176328,5.24727,2751.5,2750.1,3.63623]
[1739808176329,1.6128,2751.5,2750.0,2.37281325]
[1739808176646,1.6128,2751.5,2751.2,3.63466]
[1739808176840,1.6128,2751.5,2750.4,0.373]
[1739808177003,1.6582,2751.9,2750.8,1.6157]
[1739808177201,5.07972598,2753.2,2750.8,1.6157]
[1739808177202,1.6582,2753.0,2751.9,3.63374]
[1739808177403,1.6582,2753.0,2750.9,3.65337775]
[1739808177404,3.63266,2752.8,2750.9,3.63517]
[1739808177703,3.67824351,2752.7,2751.8,3.63394]
[1739808178028,1.6582,2753.0,2751.3,1.6157]
[1739808178029,1.6582,2753.0,2751.4,0.01818962]
[1739808178186,0.04542089,2752.9,2751.4,0.374]
[1739808178389,0.04542089,2752.9,2751.6,3.63418]
[1739808178622,3.63314,2752.5,2751.5,0.374]
[1739808178787,1.70362689,2752.4,2751.0,0.825087]
[1739808178987,3.63352,2752.2,2750.8,2.36179912]
[1739808179194,1.6582,2752.4,2751.0,3.0]
[1739808179431,1.6582,2752.4,2751.9,3.63372]
[1739808179631,1.6582,2752.4,2751.7,3.63398]
[1739808179932,5.29141,2752.4,2751.4,3.63439]
[1739808180255,1.5208,2752.8,2752.2,3.63335]
[1739808180542,5.15347,2752.8,2752.0,3.63369]
[1739808180747,1.5208,2752.8,2752.1,3.63353]
[1739808180892,5.1535,2752.8,2751.9,3.63384]
[1739808181096,5.1535,2752.8,2751.6,1.6008]
[1739808181097,1.5208,2752.8,2752.2,3.63339]
[1739808181445,1.5208,2753.3,2753.0,3.63237]
[1739808181643,1.5208,2753.3,2752.5,1.6008]
[1739808181851,3.63239,2753.1,2752.2,1.098697]
[1739808181997,1.5208,2753.3,2752.2,0.726697]
[1739808182199,1.56621134,2753.3,2752.1,1.6008]
[1739808182505,3.63243,2753.0,2752.3,3.63325]
[1739808182731,1.5208,2753.3,2752.1,5.2343]
[1739808182970,3.63336,2752.3,2751.7,1.6467]
[1739808183091,3.63401,2751.8,2751.2,3.63467]
[1739808183297,3.63401,2751.8,2750.6,5.07972598]
[1739808183298,3.63401,2751.8,2751.1,3.6349]
[1739808183496,3.63401,2751.8,2750.9,5.28178]
[1739808183738,0.363336,2752.3,2750.9,1.6467]
[1739808183739,3.63454,2751.4,2750.9,1.6467]
[1739808183909,1.6582,2752.1,2750.9,1.6467]
[1739808183910,3.63427,2751.6,2750.9,3.63517]
[1739808184096,1.6582,2752.1,2750.9,0.363517]
[1739808184302,1.6582,2752.5,2752.1,3.63358]
[1739808184607,1.6582,2752.5,2751.0,5.07972598]
[1739808184608,3.63332,2752.3,2751.0,5.07972598]
[1739808184814,3.63322,2752.4,2751.8,3.63395]
[1739808185040,3.63322,2752.4,2751.6,3.63414]
[1739808185041,3.63333,2752.3,2751.6,3.63414]
[1739808185228,0.04542287,2752.2,2751.4,3.63448]
[1739808185434,3.63372,2752.0,2751.4,4.416424]
[1739808185589,1.6582,2752.5,2751.0,3.0]
[1739808185795,1.6582,2752.5,2751.1,3.0]
[1739808186159,3.63438,2751.5,2750.1,4.17340133]
[1739808186322,3.63457,2751.4,2750.1,0.53728133]
[1739808186507,1.6122,2751.6,2749.9,4.6551]
[1739808186711,3.63474,2751.3,2750.6,3.63545]
[1739808187029,3.68017999,2751.3,2750.5,3.63559]
[1739808187226,3.63527,2750.9,2750.1,3.63619]
[1739808187531,3.63527,2750.9,2748.9,3.63771]
[1739808187532,1.5575,2750.8,2749.4,1.5025]
[1739808187736,3.6362,2750.2,2749.4,1.5025]
[1739808187936,3.63618,2750.2,2749.4,4.151104]
[1739808188244,3.63648,2750.0,2749.4,0.513974]
[1739808188430,5.32237101,2749.9,2749.3,3.63719]
[1739808188616,5.32237101,2749.9,2749.1,0.73029497]
[1739808188617,5.27691,2749.9,2749.1,0.73029497]
[1739808188806,3.63694,2749.6,2749.1,0.73029497]
[1739808189142,1.6404,2749.9,2749.1,0.73029497]
[1739808189457,3.63606,2750.3,2749.2,1.554]
[1739808189621,1.5646,2750.4,2749.2,1.554]
[1739808189825,3.63605,2750.3,2749.5,3.63693]
[1739808190147,1.5646,2750.4,2749.5,3.63699]
[1739808190444,1.5646,2750.9,2750.3,3.63596]
[1739808190655,3.63495,2751.1,2749.8,0.55]
[1739808190656,1.6155,2751.4,2750.1,1.6401]
[1739808190944,1.6155,2751.4,2749.8,3.921]
[1739808190945,3.63509,2751.0,2750.2,3.63609]
[1739808191302,3.63539,2750.8,2750.1,3.6362]
[1739808191507,1.6155,2751.4,2750.0,0.55]
[1739808191707,5.25005,2751.4,2750.6,3.63547]
[1739808191902,5.25006,2751.4,2750.1,3.63616]
[1739808192119,1.6155,2751.4,2750.9,3.63506]
[1739808192560,1.6155,2751.4,2750.7,7.27086]
[1739808192858,1.6312,2752.8,2751.0,0.55]
[1739808193069,1.67662544,2752.8,2751.7,3.63408]
[1739808193263,2.69788798,2752.8,2751.7,3.997488]
[1739808193467,2.69788798,2752.8,2751.9,3.63381]
[1739808193468,3.63303,2752.6,2751.9,3.63381]
[1739808193769,2.65246254,2752.8,2752.1,3.63358]
[1739808193770,5.26387,2752.8,2752.1,3.63358]
[1739808193918,3.6328,2752.7,2752.1,3.63358]
[1739808194110,5.26387,2752.8,2751.4,6.63451]
[1739808194111,3.63293,2752.6,2751.4,6.63451]
[1739808194361,1.6312,2752.8,2751.8,0.55]
[1739808194659,5.27764,2753.2,2752.3,3.63327]
[1739808194867,3.63241,2753.0,2752.4,3.63318]
[1739808195009,3.63276,2752.8,2752.1,3.63355]
[1739808195211,3.63276,2752.8,2751.7,3.63411]
[1739808195212,3.63302,2752.6,2751.7,3.63411]
[1739808195565,3.63319,2752.4,2751.7,4.034391]
[1739808195876,3.63243,2753.0,2752.3,3.63329]
[1739808196012,5.27754,2753.2,2752.6,3.63289]
[1739808196213,3.63245,2753.0,2752.3,3.63319]
[1739808196468,3.67805111,2752.9,2752.1,3.63357]
[1739808196763,3.67805111,2752.9,2752.2,3.63334]
[1739808196913,4.160044,2753.1,2752.5,3.63296]
[1739808197109,1.6454,2753.2,2752.5,3.63296]
[1739808197329,3.63241,2753.0,2752.3,3.63323]
[1739808197509,1.6454,2753.2,2752.6,3.63283]
[1739808197717,1.6454,2753.2,2752.3,0.363323]
[1739808197947,5.27595,2754.1,2753.2,3.6321]
[1739808198120,1.6449,2754.1,2753.0,1.5568]
[1739808198321,3.6311,2754.0,2753.3,3.63195]
[1739808198668,3.63143,2753.8,2753.0,3.63231]
[1739808198844,3.63206,2753.3,2752.4,3.63317]
[1739808199045,3.63196,2753.4,2752.2,1.5568]
[1739808199363,1.6449,2753.5,2752.2,1.5568]
[1739808199364,1.6449,2753.5,2752.8,3.63253]
[1739808199510,1.6449,2753.5,2753.0,3.63228]
[1739808199715,1.6449,2753.5,2752.8,3.63265]
[1739808199972,3.63131,2753.9,2752.6,3.63292]
[1739808200175,1.6449,2754.0,2753.4,3.63187]
[1739808200322,1.6449,2754.0,2753.2,3.63208]
[1739808200517,3.63174,2753.5,2752.3,6.63328]
[1739808200749,3.63203,2753.3,2752.6,3.63292]
[1739808200964,3.63187,2753.4,2752.9,3.63251]
[1739808201272,1.6449,2754.0,2753.4,3.63177]
[1739808201452,1.6449,2754.0,2753.0,2.187]
[1739808201453,3.63082,2754.2,2753.5,3.63164]
[1739808201772,3.67636419,2754.1,2753.3,3.63187]
[1739808201973,3.63069,2754.3,2753.7,3.63146]
[1739808202181,1.6157,2754.4,2754.2,3.63073]
[1739808202362,3.62836,2756.1,2754.3,3.63062]
[1739808202363,3.62974,2755.1,2754.3,3.63062]
[1739808202541,1.5048,2755.3,2754.8,3.62994]
[1739808202878,1.5048,2755.3,2754.2,3.63081]
[1739808203164,5.07972598,2756.0,2754.2,3.63081]
[1739808203165,1.5779,2755.7,2754.5,0.55]
[1739808203332,1.5779,2755.7,2754.8,3.62993]
[1739808203333,0.04537187,2755.6,2754.8,3.62993]
[1739808203525,3.67442183,2755.6,2754.8,3.62993]
[1739808203726,3.62905,2755.6,2754.8,3.62993]
[1739808203957,3.62937,2755.3,2754.6,3.63028]
[1739808204159,0.04537516,2755.6,2754.4,3.63043]
[1739808204359,0.52521552,2755.5,2754.7,3.63011]
[1739808204545,0.04537532,2755.4,2754.9,3.62978]
[1739808204743,3.62924,2755.4,2754.9,3.62978]
[1739808204924,3.62899,2755.6,2755.0,3.62971]
[1739808205144,5.20682,2755.7,2754.9,3.62978]
[1739808205350,3.62914,2755.5,2754.9,3.62978]
[1739808205548,5.20682,2755.7,2754.9,4.355772]
[1739808205738,5.20682,2755.7,2755.0,3.6297]
[1739808205739,3.62905,2755.6,2755.0,3.6297]
[1739808206360,1.5779,2755.7,2754.7,3.63009]
[1739808206684,3.62925,2755.4,2754.4,0.55]
[1739808206888,3.62984,2755.0,2754.4,3.63046]
[1739808207091,3.67535817,2754.9,2754.2,3.63073]
[1739808207262,3.67535817,2754.9,2754.3,3.63067]
[1739808207467,0.0453802,2754.9,2754.2,3.63073]
[1739808207798,1.5554,2754.9,2754.2,3.63073]
[1739808208084,3.63011,2754.8,2754.2,3.993803]
[1739808208256,3.63022,2754.7,2754.2,0.363073]
[1739808208456,1.5554,2754.9,2753.7,2.29287935]
[1739808208665,5.18532,2754.9,2753.7,1.5676]
[1739808208875,1.5554,2754.9,2754.2,3.63071]
[1739808209176,4.36522282,2755.8,2753.7,5.74903]
[1739808209177,1.7026838,2755.3,2753.9,0.55]
[1739808209376,1.6573,2755.3,2754.9,3.62983]
[1739808209549,3.62861,2755.9,2753.7,4.5676]
[1739808209550,3.62825,2756.2,2755.1,4.17957]
[1739808209886,3.62819,2756.2,2755.4,3.62914]
[1739808210058,3.62858,2755.9,2755.4,3.62914]
[1739808210259,3.62833,2756.1,2755.4,3.62914]
[1739808210786,3.62852,2756.0,2755.1,0.366]
[1739808210950,0.04536382,2755.9,2754.8,3.62991]
[1739808211145,3.62852,2756.0,2754.6,3.63021]
[1739808211146,3.62965,2755.1,2754.6,3.63021]
[1739808211349,3.62965,2755.1,2754.4,3.63042]
[1739808211614,3.62965,2755.1,2754.5,3.63029]
[1739808211818,5.17847,2755.7,2754.6,3.63029]
[1739808211819,1.5496,2755.7,2754.6,3.63029]
[1739808212089,3.62947,2755.3,2754.6,7.26045]
[1739808212387,3.62911,2755.5,2754.8,3.63]
[1739808212582,3.62939,2755.3,2754.6,3.63018]
[1739808212794,3.62986,2755.0,2754.4,3.63047]
[1739808213000,3.67532731,2754.9,2754.4,3.63047]
[1739808213176,3.63005,2754.8,2754.2,3.63074]
[1739808213377,1.6022,2754.7,2754.0,3.63096]
[1739808213688,1.6022,2754.7,2754.0,0.363096]
[1739808213914,1.5543,2755.6,2754.6,3.63026]
[1739808214102,1.5543,2755.6,2754.9,3.62982]
[1739808214103,3.6291,2755.5,2754.9,3.62982]
[1739808214398,3.62937,2755.3,2754.8,3.63002]
[1739808214555,1.5543,2755.6,2754.8,0.363002]
[1739808214758,1.5543,2755.6,2755.4,3.62915]
[1739808214956,3.62821,2756.2,2754.7,3.0]
[1739808215162,1.5717,2755.8,2754.8,3.62995]
[1739808215367,3.62933,2755.4,2754.8,3.32841113]
[1739808215739,1.617074,2755.8,2755.1,3.62959]
[1739808215740,1.5717,2755.8,2755.1,3.62959]
[1739808215862,1.5717,2755.8,2755.3,3.62927]
[1739808216067,0.5717,2755.8,2755.3,3.62934]
[1739808216267,7.25698,2756.0,2755.4,3.62914]
[1739808216513,3.62845,2756.0,2755.4,3.62923]
[1739808216663,3.62845,2756.0,2755.1,0.362959]
[1739808217001,3.62866,2755.9,2755.4,3.62918]
[1739808217165,3.62845,2756.0,2755.5,3.6291]
[1739808217365,3.62861,2755.9,2755.4,3.62915]
[1739808217562,3.62837,2756.1,2755.4,3.62915]
[1739808217900,3.62848,2756.0,2755.4,3.62915]
[1739808218104,3.62971,2755.1,2754.2,1.5771]
[1739808218336,3.62971,2755.1,2754.5,3.63035]
[1739808218626,3.62985,2755.0,2754.3,3.63056]
[1739808218914,0.04538122,2754.9,2754.1,3.63093]
[1739808219123,0.04538122,2754.9,2753.8,1.5505]
[1739808219124,3.63031,2754.6,2753.9,3.63118]
[1739808219419,5.16144,2754.7,2754.1,3.63084]
[1739808219597,5.16144,2754.7,2754.0,0.518168]
[1739808219598,3.62984,2755.0,2754.0,0.518168]
[1739808219778,3.62984,2755.0,2754.3,3.63061]
[1739808219983,3.62997,2754.9,2754.3,3.63059]
[1739808220259,1.6611,2755.6,2754.8,3.62992]
[1739808220398,3.62987,2755.0,2754.4,3.63048]
[1739808220598,0.04537413,2755.5,2754.0,0.518168]
[1739808220926,3.62992,2754.9,2754.3,3.63057]
[1739808221093,3.62992,2754.9,2754.4,3.63052]
[1739808221275,5.07972598,2755.8,2754.7,3.63008]
[1739808221276,3.62944,2755.3,2754.7,3.63008]
[1739808221710,3.6301,2754.8,2754.2,3.63079]
[1739808221865,3.6301,2754.8,2754.1,3.63093]
[1739808222217,3.6303,2754.6,2754.1,3.994023]
[1739808222423,3.6303,2754.6,2754.1,3.993963]
[1739808222722,3.63066,2754.4,2753.8,5.18177]
[1739808222880,3.63066,2754.4,2753.7,4.36748835]
[1739808223088,3.67608637,2754.3,2753.7,3.63135]
[1739808223619,3.63034,2754.6,2753.9,3.63112]
[1739808223791,3.63062,2754.4,2753.9,4.357371]
[1739808224003,3.63053,2754.5,2753.9,0.726251]
[1739808224328,3.62976,2755.0,2753.9,0.726251]
[1739808224509,3.63018,2754.7,2754.1,3.63086]
[1739808224672,3.63011,2754.8,2754.1,3.63086]
[1739808224871,3.6303,2754.6,2754.1,3.63086]
[1739808225523,3.67585425,2754.5,2753.9,3.63113]
[1739808225822,3.63023,2754.7,2754.1,3.63083]
[1739808226023,1.6556,2755.1,2754.2,0.363083]
[1739808226233,1.6556,2755.1,2754.8,3.6299]
[1739808226434,3.62928,2755.4,2754.8,3.6299]
[1739808226714,3.62885,2755.7,2754.7,3.63012]
[1739808226916,3.62885,2755.7,2755.0,3.62967]
[1739808227113,5.18585071,2756.0,2755.0,3.62967]
[1739808227319,3.62906,2755.6,2755.0,3.62967]
[1739808227474,3.62906,2755.6,2754.8,0.363012]
[1739808227679,3.62897,2755.7,2754.7,3.63015]
[1739808227877,1.512,2756.0,2754.9,3.62985]
[1739808228112,1.512,2756.0,2754.5,5.28395657]
[1739808228113,3.62931,2755.4,2754.8,3.62997]
[1739808228313,3.62914,2755.5,2754.9,3.62986]
[1739808228619,3.67451357,2755.5,2754.9,7.622646]
[1739808228823,7.30373357,2755.5,2754.9,3.992786]
[1739808229020,1.5332,2755.4,2754.2,1.865383]
[1739808229189,3.63013,2754.8,2754.2,0.363083]
[1739808229387,3.6748094,2755.3,2754.2,3.6307]
[1739808229603,1.5332,2755.4,2754.1,0.36]
[1739808229604,3.62963,2755.1,2754.1,0.36]
[1739808229789,3.63016,2754.7,2754.2,3.63073]
[1739808229991,3.62981,2755.0,2754.0,0.70928845]
[1739808230205,0.04538238,2754.9,2754.3,3.63058]
[1739808230416,3.62936,2755.3,2754.1,0.43402784]
[1739808230617,1.5332,2755.4,2754.1,0.43402784]
[1739808230830,1.5332,2755.4,2754.8,3.62994]
[1739808230987,1.57857495,2755.4,2755.0,3.62972]
[1739808231191,1.57857302,2755.4,2754.8,3.992944]
[1739808231395,1.5332,2755.4,2755.0,3.62966]
[1739808231588,1.5332,2755.4,2754.9,3.62989]
[1739808231791,1.5332,2755.4,2755.0,3.62976]
[1739808232042,1.5332,2755.4,2754.9,3.62989]
[1739808232341,5.16199,2755.8,2755.1,3.62951]
[1739808232489,1.5332,2755.8,2755.0,0.3992884]
[1739808232690,1.5332,2756.7,2755.4,0.55]
[1739808232907,1.5332,2756.7,2756.1,3.62824]
[1739808233110,1.5332,2757.1,2755.8,0.359]
[1739808233344,1.5332,2757.1,2756.8,3.6273]
[1739808233528,0.83333333,2757.2,2757.1,3.62699]
[1739808233736,0.83333333,2757.2,2757.1,4.17699]
[1739808234062,0.83333333,2757.2,2757.0,1.5691]
[1739808234261,0.83333333,2757.2,2757.0,5.19613]
[1739808234469,0.83333333,2757.2,2757.1,3.62699]
[1739808234958,0.83333333,2757.2,2757.1,4.146599]
[1739808235453,0.83333333,2757.2,2757.1,0.519609]
[1739808235755,0.83333333,2757.2,2757.1,4.17699]
[1739808235955,0.83333333,2757.2,2757.1,3.62699]
[1739808236140,0.83333333,2757.2,2756.9,3.62714]
[1739808236342,0.83333333,2757.2,2757.0,3.62713]
[1739808236528,0.83333333,2757.2,2756.8,3.62731]
[1739808236719,0.83333333,2757.2,2756.7,0.73965013]
[1739808236915,0.83333333,2757.2,2756.1,5.18008]
[1739808236916,2.48993333,2757.2,2756.1,5.18008]
[1739808237111,3.62714,2757.0,2756.2,0.518008]
[1739808237363,3.62699,2757.1,2756.2,0.518008]
[1739808237563,3.62735,2756.9,2756.1,5.18008]
[1739808237741,0.04535058,2756.8,2755.9,3.62855]
[1739808237944,3.62764,2756.7,2755.8,3.62859]
[1739808238143,3.62788,2756.5,2755.8,3.62859]
[1739808238328,3.67306323,2756.6,2755.9,3.62848]
[1739808238659,3.62771,2756.6,2755.9,3.62848]
[1739808239040,3.62756,2756.7,2756.0,3.62841]
[1739808239242,2.48993333,2757.2,2756.1,0.55]
[1739808239549,3.62708,2757.1,2756.2,1.606]
[1739808239754,3.62735,2756.9,2756.3,3.62796]
[1739808239956,3.62735,2756.9,2755.7,0.73070714]
[1739808239957,1.56394744,2756.8,2754.6,1.606]
[1739808240127,3.62804,2756.4,2755.7,3.62879]
[1739808240454,0.04535762,2756.3,2755.4,1.606]
[1739808240657,3.67287564,2756.7,2755.1,0.71170394]
[1739808240858,3.6287,2755.9,2755.2,3.62949]
[1739808241157,1.5186,2755.8,2755.1,3.62953]
[1739808241340,5.14731,2755.8,2755.2,3.62948]
[1739808241515,1.5186,2755.8,2755.2,4.355311]
[1739808241716,1.5186,2755.8,2755.3,3.62935]
[1739808241959,1.5186,2755.8,2755.1,3.62957]
[1739808242162,3.62887,2755.7,2755.1,3.62957]
[1739808242329,1.5186,2755.8,2755.2,7.25877]
[1739808242531,1.6199,2756.3,2754.9,3.0]
[1739808242742,0.04536121,2756.2,2755.8,3.62868]
[1739808243113,0.44604133,2757.0,2756.0,3.62842]
[1739808243319,0.44604133,2757.0,2755.4,2.2013]
[1739808243320,1.6199,2756.9,2755.8,3.62865]
[1739808243516,3.62803,2756.4,2755.8,3.62865]
[1739808243721,3.62753,2756.7,2756.0,3.62838]
[1739808243943,3.62753,2756.7,2755.8,3.62863]
[1739808243944,1.6199,2756.9,2755.8,3.62864]
[1739808244269,3.62783,2756.5,2755.9,3.62853]
[1739808244433,0.04535447,2756.6,2755.8,0.417864]
[1739808244634,3.62756,2756.7,2756.0,3.62832]
[1739808244830,3.62763,2756.7,2755.4,1.6513]
[1739808245031,1.6199,2756.9,2756.1,3.62831]
[1739808245232,3.62752,2756.7,2756.1,3.62823]
[1739808245424,3.62779,2756.5,2755.9,3.62847]
[1739808245931,0.04535417,2756.4,2755.9,3.62851]
[1739808246136,0.04535518,2756.6,2755.9,3.62851]
[1739808246560,3.6278,2756.5,2755.9,3.62851]
[1739808246867,3.6278,2756.5,2755.3,4.09869229]
[1739808246868,3.62896,2755.7,2755.1,3.62955]
[1739808247054,3.6291,2755.5,2754.9,3.62976]
[1739808247236,0.04537181,2756.0,2754.8,0.71316713]
[1739808247443,1.5954,2756.3,2755.8,3.62867]
[1739808247637,1.5954,2756.3,2756.2,3.62818]
[1739808247963,3.62768,2756.6,2756.0,3.62837]
[1739808248172,3.62713,2757.0,2756.4,3.62785]
[1739808248391,5.12806,2756.3,2755.5,1.5317]
[1739808248666,5.12806,2756.3,2755.3,0.357]
[1739808248667,3.62843,2756.1,2755.4,3.62914]
[1739808248833,0.0453621,2756.0,2755.5,3.6291]
[1739808249166,0.0453621,2756.0,2755.3,0.357]
[1739808249167,1.5,2756.3,2755.3,0.357]
[1739808249368,1.5,2756.3,2753.6,0.21855853]
[1739808249369,0.04536275,2756.0,2754.7,1.5495]
[1739808249665,0.04536275,2756.0,2754.1,13.66975382]
[1739808249666,3.62986,2755.0,2754.3,7.26126]
[1739808249973,5.22866,2755.1,2754.4,0.881076]
[1739808249974,1.599,2755.1,2754.4,0.881076]
[1739808250139,5.22874,2755.1,2754.5,3.63035]
[1739808250522,1.599,2755.1,2754.2,1.5495]
[1739808250782,3.62784,2756.5,2755.1,3.62951]
[1739808250783,3.62882,2755.8,2755.1,3.62951]
[1739808251065,1.599,2756.0,2754.5,4.18036]
[1739808251265,3.62897,2755.6,2755.1,3.62961]
[1739808251463,1.599,2756.0,2755.1,3.62961]
[1739808251623,1.599,2756.0,2755.7,3.62881]
[1739808251966,1.599,2756.0,2755.3,3.62926]
[1739808252166,3.62878,2755.8,2755.2,3.62942]
[1739808252324,5.22756,2756.0,2755.0,3.62976]
[1739808252325,8.85604,2756.0,2755.0,3.62976]
[1739808252529,1.599,2756.0,2755.2,0.55]
[1739808252774,0.04536518,2755.9,2755.5,3.62909]
[1739808253066,3.62857,2755.9,2755.1,3.62962]
[1739808253268,3.62857,2755.9,2755.1,3.62951]
[1739808253442,3.62898,2755.6,2755.0,3.62976]
[1739808253763,3.62877,2755.8,2755.0,3.62976]
[1739808254061,3.62877,2755.8,2755.2,3.62947]
[1739808254364,3.62877,2755.8,2754.6,1.328036]
[1739808254365,3.62898,2755.6,2754.8,3.62998]
[1739808254665,5.27878,2755.1,2754.5,3.63033]
[1739808254960,0.362898,2755.5,2754.8,3.62995]
[1739808255168,1.6491,2755.5,2755.1,3.62953]
[1739808255527,1.6491,2755.5,2754.8,3.62994]
[1739808255768,1.6491,2755.5,2754.1,2.04042784]
[1739808256067,0.522757,2755.9,2754.1,2.04042784]
[1739808256068,1.6491,2754.9,2754.1,0.43402784]
[1739808256268,1.6491,2754.9,2754.4,3.63055]
[1739808256429,3.63004,2754.8,2754.3,3.63063]
[1739808256938,1.6491,2754.9,2754.3,3.63063]
[1739808257157,1.6491,2754.9,2753.9,3.63111]
[1739808257158,1.6491,2754.9,2754.5,3.63033]
[1739808257672,1.6491,2754.9,2754.5,3.993383]
[1739808257911,1.6491,2754.9,2754.3,3.6306]